bitfinex-derivatives/quotes_BTCF0:USTF0_20250501
["timestamp","ask_amount","ask_price","bid_price","bid_amount"]
[1746064260589,0.03504,94673.0,94672.0,1.28955695]
[1746064262499,0.03504,94673.0,94672.0,0.56795695]
[1746064262698,0.03504,94673.0,94672.0,1.28955695]
[1746064265195,0.03504,94673.0,94672.0,1.25765695]
[1746064265595,0.03504,94673.0,94672.0,1.27322608]
[1746064265897,0.03504,94673.0,94672.0,1.05128913]
[1746064266099,0.2462829,94673.0,94672.0,0.67492]
[1746064266291,0.2462829,94673.0,94672.0,0.6108]
[1746064267091,0.2462829,94673.0,94672.0,0.8220451]
[1746064267294,0.2462829,94673.0,94672.0,0.6108]
[1746064268197,0.2462429,94673.0,94672.0,0.8220451]
[1746064282202,0.35187091,94673.0,94672.0,0.25]
[1746064282404,0.2112585,94667.0,94666.0,0.2112515]
[1746064282709,0.2112585,94667.0,94666.0,0.2312515]
[1746064283108,0.2737585,94667.0,94666.0,0.2312515]
[1746064284800,0.2747585,94667.0,94666.0,0.2312515]
[1746064286512,0.2747585,94667.0,94666.0,0.02]
[1746064286705,0.2112763,94658.0,94657.0,0.3608]
[1746064287913,0.2112763,94658.0,94657.0,0.3628]
[1746064288904,0.2112763,94658.0,94657.0,0.3608]
[1746064289217,0.2122763,94658.0,94657.0,0.3638]
[1746064289911,0.2122763,94658.0,94657.0,0.3618]
[1746064292607,0.2132763,94658.0,94657.0,0.3608]
[1746064293401,0.211292,94651.0,94650.0,0.06412]
[1746064293608,0.211292,94651.0,94650.0,0.4654142]
[1746064294401,0.276892,94651.0,94650.0,0.4654142]
[1746064294807,0.276892,94651.0,94650.0,0.4664142]
[1746064296006,0.276892,94651.0,94650.0,0.4674142]
[1746064299712,0.276892,94651.0,94650.0,0.4997142]
[1746064303709,0.276892,94651.0,94650.0,0.28842]
[1746064304615,0.276892,94651.0,94650.0,0.4997142]
[1746064305614,0.276892,94651.0,94650.0,0.28842]
[1746064308107,0.276892,94651.0,94650.0,0.28742]
[1746064308308,0.277892,94651.0,94650.0,0.28642]
[1746064310212,0.276892,94651.0,94650.0,0.28642]
[1746064310409,0.277892,94651.0,94650.0,0.28642]
[1746064310807,0.276892,94651.0,94650.0,0.28642]
[1746064311017,0.277892,94651.0,94650.0,0.28642]
[1746064314507,0.277892,94651.0,94650.0,0.25412]
[1746064314713,0.277892,94651.0,94650.0,0.19]
[1746064314917,0.2113098,94643.0,94637.0,0.06412]
[1746064315223,0.2113098,94643.0,94631.0,0.0313]
[1746064315424,0.2113098,94643.0,94631.0,0.0634]
[1746064315718,0.6777698,94643.0,94629.0,0.09672]
[1746064315919,0.7733698,94643.0,94629.0,0.0326]
[1746064316319,0.7733698,94643.0,94632.0,0.16084812]
[1746064317014,0.7733698,94643.0,94642.0,0.00358491]
[1746064317214,0.7733698,94643.0,94642.0,0.00558491]
[1746064317617,0.7733698,94643.0,94642.0,0.00458491]
[1746064317817,0.7733698,94643.0,94642.0,0.00358491]
[1746064318221,0.56206,94643.0,94632.0,0.16084812]
[1746064318410,0.2113321,94633.0,94632.0,0.16084812]
[1746064319310,0.6358321,94633.0,94632.0,0.16084812]
[1746064319823,0.2113455,94627.0,94626.0,0.21455059]
[1746064320010,0.2113455,94627.0,94626.0,0.22455059]
[1746064320819,0.2113455,94627.0,94626.0,0.01]
[1746064321019,0.2113455,94627.0,94626.0,0.011]
[1746064322319,0.2113455,94627.0,94626.0,0.001]
[1746064325525,0.21944537,94627.0,94626.0,0.001]
[1746064325929,0.21944537,94627.0,94626.0,0.4135478]
[1746064326135,0.21944537,94627.0,94626.0,0.4463478]
[1746064326432,0.00809987,94627.0,94626.0,0.4463478]
[1746064326627,0.2113455,94627.0,94626.0,0.4991843]
[1746064327325,0.2113855,94627.0,94626.0,0.4991843]
[1746064328026,0.21943303,94627.0,94626.0,0.4991843]
[1746064328217,0.21943303,94627.0,94626.0,0.6211843]
[1746064331528,0.21943303,94627.0,94626.0,0.9819843]
[1746064331825,0.21943303,94627.0,94626.0,0.6211843]
[1746064332025,0.21943303,94627.0,94626.0,0.9819843]
[1746064332227,0.21943303,94627.0,94626.0,0.8599843]
[1746064332828,0.21943303,94627.0,94626.0,0.4991843]
[1746064333130,0.21943303,94627.0,94626.0,0.8599843]
[1746064333519,0.21943303,94627.0,94626.0,0.4991843]
[1746064333719,0.21943303,94627.0,94626.0,0.8599843]
[1746064334320,0.21943303,94627.0,94626.0,0.4991843]
[1746064334519,0.21943303,94627.0,94626.0,0.8599843]
[1746064335021,0.00808753,94627.0,94626.0,0.8599843]
[1746064335225,0.2113245,94637.0,94636.0,0.211321]
[1746064335525,0.2113245,94637.0,94636.0,0.812121]
[1746064335937,0.2113245,94637.0,94636.0,0.82279694]
[1746064336340,0.2113245,94637.0,94636.0,0.812121]
[1746064336634,0.2447245,94637.0,94636.0,0.812121]
[1746064336932,0.2773245,94637.0,94636.0,0.812121]
[1746064338131,0.2467245,94637.0,94636.0,0.812121]
[1746064338722,0.25468773,94637.0,94636.0,0.812121]
[1746064338931,0.25472773,94637.0,94636.0,0.812121]
[1746064341031,0.28482773,94637.0,94636.0,0.812121]
[1746064342527,0.28482773,94637.0,94636.0,0.843921]
[1746064353638,0.28482773,94637.0,94636.0,0.876821]
[1746064354442,0.28482773,94637.0,94636.0,0.845021]
[1746064355338,0.28482773,94637.0,94636.0,0.812121]
[1746064360638,0.28482773,94637.0,94636.0,0.842421]
[1746064361041,0.28482773,94637.0,94636.0,0.812121]
[1746064363950,0.28482773,94637.0,94636.0,0.842121]
[1746064366557,0.25472773,94637.0,94636.0,0.842121]
[1746064366752,0.04340323,94637.0,94636.0,0.872421]
[1746064367050,0.01200323,94637.0,94636.0,0.872421]
[1746064367249,0.01196323,94637.0,94636.0,0.994421]
[1746064367451,0.01200323,94637.0,94636.0,0.994421]
[1746064371141,0.01200323,94637.0,94636.0,0.872421]
[1746064376047,0.01200323,94637.0,94636.0,0.994421]
[1746064377255,0.01200323,94637.0,94636.0,0.872421]
[1746064378362,0.04400323,94637.0,94636.0,0.872421]
[1746064379865,0.25532643,94637.0,94636.0,0.872421]
[1746064381479,0.04400323,94637.0,94636.0,0.872421]
[1746064383563,0.25532643,94637.0,94636.0,0.872421]
[1746064383956,0.25532643,94637.0,94636.0,2.372421]
[1746064391361,0.04400323,94637.0,94636.0,2.372421]
[1746064392558,0.07650323,94637.0,94636.0,2.372421]
[1746064394766,0.06854,94637.0,94636.0,2.372421]
[1746064398269,0.0685,94637.0,94636.0,2.372421]
[1746064402867,0.0685,94637.0,94636.0,2.436501]
[1746064405272,0.0685,94637.0,94636.0,2.406201]
[1746064405469,0.1013,94637.0,94636.0,2.376201]
[1746064408775,0.1013,94637.0,94636.0,2.408601]
[1746064411380,0.0685,94637.0,94636.0,2.408601]
[1746064411582,0.036,94637.0,94636.0,2.438801]
[1746064411780,5.401e-05,94646.0,94645.0,0.2113054]
[1746064411982,5.401e-05,94646.0,94645.0,0.8521054]
[1746064412481,5.401e-05,94646.0,94645.0,2.3521054]
[1746064412681,0.0301,94649.0,94648.0,0.2112987]
[1746064412979,0.0301,94649.0,94648.0,0.4612987]
[1746064414371,0.0391,94649.0,94648.0,0.4622987]
[1746064415066,0.0698,94649.0,94648.0,0.4622987]
[1746064416272,0.2810964,94649.0,94648.0,0.4622987]
[1746064420176,0.2810964,94649.0,94648.0,0.251]
[1746064421688,0.2810964,94649.0,94648.0,0.4622987]
[1746064423578,0.0698,94649.0,94648.0,0.4622987]
[1746064423777,0.06984,94649.0,94648.0,0.4622987]
[1746064423973,0.00904,94649.0,94648.0,0.4622987]
[1746064424292,7.291e-05,94666.0,94659.0,0.2112741]
[1746064424587,0.0302,94661.0,94659.0,0.8861141]
[1746064424786,4e-05,94660.0,94659.0,0.79647453]
[1746064424988,5.401e-05,94672.0,94668.0,0.211254]
[1746064424989,0.0302,94671.0,94668.0,0.211254]
[1746064425180,0.0302,94671.0,94668.0,0.822054]
[1746064425489,0.16112074,94669.0,94668.0,0.822054]
[1746064425891,0.16112074,94669.0,94668.0,0.885454]
[1746064426503,0.16112074,94669.0,94668.0,0.90239327]
[1746064426689,0.0305,94677.0,94676.0,0.2112362]
[1746064426886,0.0305,94677.0,94676.0,0.8220362]
[1746064427992,0.0305,94677.0,94676.0,0.8547362]
[1746064428286,0.0305,94677.0,94676.0,0.86548034]
[1746064428693,0.00783911,94680.0,94679.0,0.2112295]
[1746064428895,5.401e-05,94682.0,94681.0,0.211225]
[1746064429086,5.401e-05,94682.0,94681.0,0.451225]
[1746064429486,5.401e-05,94682.0,94681.0,0.516025]
[1746064430396,0.21327681,94682.0,94681.0,0.876825]
[1746064431393,0.21527681,94682.0,94681.0,0.876825]
[1746064431996,0.22324464,94682.0,94681.0,0.876825]
[1746064436295,0.00405401,94682.0,94681.0,0.876825]
[1746064436501,0.001,94686.0,94685.0,0.2112161]
[1746064436702,0.22001694,94686.0,94685.0,0.4812161]
[1746064436896,0.2122539,94686.0,94685.0,0.4812161]
[1746064438399,0.2162539,94686.0,94685.0,0.4812161]
[1746064439697,0.2162539,94686.0,94685.0,0.27]
[1746064439698,0.22407304,94686.0,94685.0,0.27]
[1746064440196,0.2112228,94682.0,94681.0,0.3608]
[1746064440399,0.2112429,94673.0,94672.0,0.06404]
[1746064440597,0.2112429,94673.0,94672.0,0.07404]
[1746064442392,0.2112429,94673.0,94672.0,0.07504]
[1746064442591,0.2437429,94673.0,94672.0,0.011]
[1746064442989,0.2437429,94673.0,94672.0,0.012]
[1746064452994,0.2437429,94673.0,94672.0,0.002]
[1746064453604,0.2757429,94673.0,94672.0,0.002]
[1746064462812,0.2437429,94673.0,94672.0,0.002]
[1746064466110,0.2437429,94673.0,94672.0,0.172]
[1746064466308,0.2112429,94673.0,94672.0,0.172]
[1746064466513,0.2112429,94673.0,94672.0,0.39975581]
[1746064466816,0.2112429,94673.0,94672.0,0.46225581]
[1746064467214,0.2112429,94673.0,94672.0,0.25101071]
[1746064467401,0.2112429,94673.0,94672.0,0.46225581]
[1746064467602,0.2112429,94673.0,94672.0,0.46225591]
[1746064468213,0.2112429,94673.0,94672.0,0.25101081]
[1746064468712,0.2112429,94673.0,94672.0,0.2345]
[1746064469801,0.2112429,94673.0,94672.0,0.25101099]
[1746064470610,0.2112429,94673.0,94672.0,0.2345]
[1746064472315,0.2112429,94673.0,94672.0,0.0645]
[1746064474524,0.2112429,94673.0,94672.0,0.2445]
[1746064474822,0.2112429,94673.0,94672.0,0.4557451]
[1746064483827,0.20026635,94695.0,94672.0,0.2445]
[1746064484021,0.2112161,94685.0,94684.0,0.5720161]
[1746064484331,0.2112561,94685.0,94684.0,0.75401542]
[1746064484529,0.2112561,94685.0,94684.0,0.37279932]
[1746064484730,0.2112161,94685.0,94684.0,0.01199932]
[1746064484928,0.2112561,94685.0,94684.0,0.01199932]
[1746064485124,0.2132561,94685.0,94684.0,0.01199932]
[1746064485320,0.2465561,94685.0,94684.0,0.2112183]
[1746064485527,0.2465561,94685.0,94684.0,0.22321671]
[1746064485729,0.2465561,94685.0,94684.0,0.27192597]
[1746064487231,0.2475561,94685.0,94684.0,0.27192597]
[1746064488437,0.2475561,94685.0,94684.0,0.44192597]
[1746064488734,0.2475161,94685.0,94684.0,0.44192597]
[1746064488930,0.2475561,94685.0,94684.0,0.44192597]
[1746064490431,0.2475561,94685.0,94684.0,0.42992756]
[1746064490625,0.2475561,94685.0,94684.0,0.44192652]
[1746064492433,7.291e-05,94690.0,94689.0,0.2112072]
[1746064492623,0.052794,94703.0,94694.0,0.211196]
[1746064492933,0.032,94706.0,94694.0,0.85050171]
[1746064493235,0.0527938,94704.0,94694.0,0.60050171]
[1746064493431,5.401e-05,94696.0,94694.0,0.72050171]
[1746064493631,0.0045,94695.0,94694.0,0.72050171]
[1746064493831,0.04034,94695.0,94694.0,0.70399496]
[1746064494233,0.0403,94695.0,94694.0,0.70399496]
[1746064494435,0.03334,94695.0,94694.0,0.70499496]
[1746064495138,0.04115818,94695.0,94694.0,0.70499496]
[1746064495329,0.04115818,94695.0,94694.0,0.7052377]
[1746064495529,0.04115818,94695.0,94694.0,0.70523771]
[1746064495729,0.04115818,94695.0,94694.0,0.7052376]
[1746064496338,0.25235198,94695.0,94694.0,0.7052376]
[1746064501634,0.04115818,94695.0,94694.0,0.7052376]
[1746064501829,0.04115818,94695.0,94694.0,0.70504064]
[1746064502029,0.25235198,94695.0,94694.0,0.70504064]
[1746064503032,0.25235198,94695.0,94694.0,0.705031]
[1746064503533,0.04115818,94695.0,94694.0,0.705031]
[1746064503740,0.04115818,94695.0,94694.0,0.7215361]
[1746064504130,0.04115818,94695.0,94694.0,0.705031]
[1746064504639,0.00935818,94695.0,94694.0,0.70507799]
[1746064505032,0.00935818,94695.0,94694.0,0.72158251]
[1746064505431,0.22055198,94695.0,94694.0,0.72158251]
[1746064508142,0.00154,94695.0,94694.0,0.72158251]
[1746064508445,0.00154,94695.0,94694.0,0.72158252]
[1746064508643,0.0015,94695.0,94694.0,0.72158252]
[1746064508843,0.00154,94695.0,94694.0,0.73607799]
[1746064510132,0.00154,94695.0,94694.0,0.73632709]
[1746064511844,0.00154,94695.0,94694.0,0.73637436]
[1746064515641,5.401e-05,94701.0,94697.0,0.0527973]
[1746064515838,5.401e-05,94701.0,94700.0,0.2111826]
[1746064516033,5.401e-05,94701.0,94700.0,0.53006529]
[1746064516239,0.2111762,94705.0,94704.0,0.2111715]
[1746064516559,0.2443762,94705.0,94704.0,0.60085419]
[1746064516748,0.2763762,94705.0,94704.0,0.60085419]
[1746064517447,0.27142489,94705.0,94704.0,0.63265424]
[1746064517641,0.27242489,94705.0,94704.0,0.63265424]
[1746064518351,0.27342489,94705.0,94704.0,0.63265424]
[1746064518659,0.27342489,94705.0,94704.0,0.63265434]
[1746064518844,0.30562489,94705.0,94704.0,0.62666987]
[1746064521052,0.07535902,94705.0,94704.0,0.74486987]
[1746064521349,0.04215902,94705.0,94704.0,0.76137423]
[1746064521750,0.04215902,94705.0,94704.0,0.82667423]
[1746064521950,5.401e-05,94709.0,94708.0,0.2111648]
[1746064522252,0.0015,94730.0,94729.0,0.211118]
[1746064522451,0.00934336,94730.0,94729.0,0.88068513]
[1746064522644,0.0015,94730.0,94729.0,0.91318072]
[1746064522837,0.00154,94730.0,94729.0,0.91318072]
[1746064523341,0.00154,94730.0,94729.0,0.91318079]
[1746064523939,0.00154,94730.0,94729.0,0.89668077]
[1746064524351,0.00154,94730.0,94729.0,0.89676142]
[1746064524651,0.00154,94730.0,94729.0,0.61676142]
[1746064524847,0.00154,94730.0,94729.0,0.78676142]
[1746064525857,0.00154,94730.0,94729.0,0.78644933]
[1746064526047,0.00154,94730.0,94729.0,0.78644814]
[1746064528356,0.00154,94730.0,94729.0,0.61644814]
[1746064528553,0.00154,94730.0,94729.0,0.76644814]
[1746064529550,0.00154,94730.0,94729.0,0.61644814]
[1746064529854,0.00154,94730.0,94729.0,0.77644814]
[1746064530251,0.03374,94730.0,94729.0,0.77644814]
[1746064531960,0.03374,94730.0,94729.0,0.79644814]
[1746064532960,0.03374,94730.0,94729.0,0.61627512]
[1746064533160,0.03374,94730.0,94729.0,0.61627414]
[1746064533459,0.03374,94730.0,94729.0,0.82707414]
[1746064533663,0.03374,94730.0,94729.0,0.82708237]
[1746064534058,0.03374,94730.0,94729.0,0.82708238]
[1746064534357,0.2448558,94730.0,94729.0,0.64708238]
[1746064534552,0.03374,94730.0,94729.0,0.64708238]
[1746064534749,0.03374,94730.0,94729.0,0.64696808]
[1746064534949,0.06454,94730.0,94729.0,0.64696808]
[1746064536060,0.06454,94730.0,94729.0,0.43585008]
[1746064536261,0.2756558,94730.0,94729.0,0.04425008]
[1746064536456,0.2756558,94730.0,94729.0,0.01175008]
[1746064536659,0.2111247,94726.0,94725.0,0.0317]
[1746064537658,0.2111247,94726.0,94725.0,0.2428269]
[1746064537861,0.2754247,94726.0,94725.0,0.2428269]
[1746064538559,0.2754247,94726.0,94725.0,0.25563036]
[1746064539074,0.2754247,94726.0,94725.0,0.25663036]
[1746064539358,0.2754247,94726.0,94725.0,0.25663124]
[1746064539658,0.2754247,94726.0,94725.0,0.25663133]
[1746064540351,0.2111247,94726.0,94725.0,0.25663133]
[1746064540551,0.00154,94730.0,94729.0,0.211118]
[1746064540756,0.0015,94730.0,94729.0,0.5029213]
[1746064540947,0.0015,94730.0,94729.0,0.5655213]
[1746064543559,0.0015,94730.0,94729.0,0.56554023]
[1746064544252,0.2126158,94730.0,94729.0,0.56544683]
[1746064544457,0.2126158,94730.0,94729.0,0.56544936]
[1746064544664,0.2126158,94730.0,94729.0,0.553718]
[1746064545665,0.2126158,94730.0,94729.0,0.56544675]
[1746064546266,0.2126158,94730.0,94729.0,0.56544804]
[1746064547064,0.2126158,94730.0,94729.0,0.56553337]
[1746064548267,0.2126158,94730.0,94729.0,0.92631619]
[1746064548867,0.2126158,94730.0,94729.0,0.92634241]
[1746064550767,0.2448158,94730.0,94729.0,0.914518]
[1746064551765,0.2448158,94730.0,94729.0,0.92627405]
[1746064552457,0.2448158,94730.0,94729.0,0.92627373]
[1746064552764,0.2448158,94730.0,94729.0,0.914518]
[1746064554862,0.2448158,94730.0,94729.0,0.92628]
[1746064555165,0.2448158,94730.0,94729.0,0.92627986]
[1746064555766,0.2448158,94730.0,94729.0,0.914518]
[1746064555958,0.2448158,94730.0,94729.0,0.6734]
[1746064556158,0.2760158,94730.0,94729.0,0.0326]
[1746064557757,0.3077158,94730.0,94729.0,0.0326]
[1746064562781,0.2111581,94711.0,94710.0,0.42872]
[1746064563077,0.2111581,94711.0,94710.0,0.43872]
[1746064563265,0.2111581,94711.0,94710.0,0.42872]
[1746064563662,0.2421581,94711.0,94710.0,0.42872]
[1746064563869,0.2421581,94711.0,94710.0,0.3608]
[1746064564071,0.2737581,94711.0,94710.0,0.3658]
[1746064564278,0.6345581,94711.0,94710.0,0.005]
[1746064564974,0.6345581,94711.0,94710.0,0.009]
[1746064566576,0.6345581,94711.0,94710.0,0.007]
[1746064566965,0.6345581,94711.0,94710.0,0.005]
[1746064568774,0.6345581,94711.0,94710.0,0.01673968]
[1746064569273,0.6345581,94711.0,94710.0,0.005]
[1746064569474,0.6345581,94711.0,94710.0,0.01673969]
[1746064570068,0.6345581,94711.0,94710.0,0.01473969]
[1746064570875,0.6345581,94711.0,94710.0,0.003]
[1746064571079,0.6345581,94711.0,94710.0,0.001]
[1746064572982,0.6345581,94711.0,94710.0,0.0341]
[1746064573777,0.6345581,94711.0,94710.0,0.04583484]
[1746064574981,0.6345581,94711.0,94710.0,0.04584275]
[1746064575777,0.6345581,94711.0,94710.0,0.0341]
[1746064580985,0.6035581,94711.0,94710.0,0.0341]
[1746064581983,0.5719581,94711.0,94710.0,0.0341]
[1746064583082,0.6362581,94711.0,94710.0,0.0341]
[1746064584179,0.2111737,94704.0,94703.0,0.00158383]
[1746064585687,0.2111737,94704.0,94703.0,0.00358383]
[1746064585984,0.2111737,94704.0,94703.0,0.01834213]
[1746064588191,0.2111737,94704.0,94703.0,0.01834714]
[1746064588384,0.2440737,94704.0,94703.0,0.01834714]
[1746064588580,0.2440737,94704.0,94703.0,0.00658383]
[1746064588885,0.2440737,94704.0,94703.0,0.01834969]
[1746064589389,0.2440737,94704.0,94703.0,0.01534969]
[1746064589592,0.2440737,94704.0,94703.0,0.01634969]
[1746064590289,0.2440737,94704.0,94703.0,0.01434969]
[1746064590492,0.2440737,94704.0,94703.0,0.04454969]
[1746064590880,0.2440737,94704.0,94703.0,0.04354969]
[1746064591088,0.2440737,94704.0,94703.0,0.04454969]
[1746064592490,0.2111737,94704.0,94703.0,0.41572559]
[1746064592691,0.2112137,94704.0,94703.0,0.41572559]
[1746064593094,0.2111737,94704.0,94703.0,0.41572559]
[1746064593293,0.2112137,94704.0,94703.0,0.41572559]
[1746064593493,0.2112137,94704.0,94703.0,0.41588889]
[1746064594294,0.2112137,94704.0,94703.0,0.40395973]
[1746064594595,0.2112137,94704.0,94703.0,0.41588873]
[1746064594793,0.2112137,94704.0,94703.0,0.43172639]
[1746064594997,0.2112137,94704.0,94703.0,0.43172691]
[1746064595296,0.2112137,94704.0,94703.0,0.43172696]
[1746064595484,4e-05,94704.0,94703.0,0.41588901]
[1746064595684,0.2111737,94704.0,94703.0,0.46868251]
[1746064595991,0.2111737,94704.0,94703.0,0.46868123]
[1746064596291,0.2111737,94704.0,94703.0,0.46887102]
[1746064596693,0.2111737,94704.0,94703.0,0.48537568]
[1746064596891,0.2111737,94704.0,94703.0,0.4853755]
[1746064597086,0.2111737,94704.0,94703.0,0.48537529]
[1746064597287,5.401e-05,94710.0,94703.0,0.48537529]
[1746064597288,5.401e-05,94710.0,94707.0,0.0527913]
[1746064597487,5.401e-05,94710.0,94709.0,0.5719626]
[1746064597692,0.0527889,94712.0,94711.0,0.2639399]
[1746064597993,0.2639436,94715.0,94714.0,0.2111514]
[1746064598193,0.2111559,94715.0,94714.0,0.40977818]
[1746064598387,0.2111559,94715.0,94714.0,0.40977648]
[1746064598592,0.2111559,94715.0,94714.0,0.45667369]
[1746064598799,0.2111559,94715.0,94714.0,0.47317652]
[1746064598990,0.2111559,94715.0,94714.0,0.47317041]
[1746064599191,0.20620499,94715.0,94714.0,0.45666736]
[1746064599886,0.20820499,94715.0,94714.0,0.45666736]
[1746064600787,0.20920499,94715.0,94714.0,0.45666736]
[1746064604395,0.20920499,94715.0,94714.0,0.4445514]
[1746064604597,0.20920499,94715.0,94714.0,0.45649316]
[1746064606293,0.20920499,94715.0,94714.0,0.45645947]
[1746064607797,0.20920499,94715.0,94714.0,0.04400807]
[1746064608197,0.20920499,94715.0,94714.0,0.01190807]
[1746064609791,0.2111715,94705.0,94704.0,0.0318]
[1746064610000,0.2111715,94705.0,94704.0,0.04366915]
[1746064610297,0.2111715,94705.0,94704.0,0.01186915]
[1746064610797,0.2737715,94705.0,94704.0,0.01186915]
[1746064610999,0.2737715,94705.0,94704.0,0.01286915]
[1746064611201,0.2737715,94705.0,94704.0,0.001]
[1746064611399,0.2737715,94705.0,94704.0,0.0328]
[1746064613304,0.2737715,94705.0,94704.0,0.04455689]
[1746064614403,0.2737715,94705.0,94704.0,0.04467555]
[1746064615100,0.2737715,94705.0,94704.0,0.0328]
[1746064615300,0.2737715,94705.0,94704.0,0.04462748]
[1746064615701,0.2737715,94705.0,94704.0,0.04462711]
[1746064617105,0.2737715,94705.0,94704.0,0.0328]
[1746064621096,0.0527996,94693.0,94685.0,0.00105613]
[1746064621291,0.2112049,94690.0,94686.0,0.2429122]
[1746064621595,0.2112049,94690.0,94686.0,0.0317]
[1746064622503,0.2112049,94690.0,94687.0,0.2640132]
[1746064622803,0.2112049,94690.0,94689.0,0.3638]
[1746064623302,0.2112049,94690.0,94689.0,0.37561127]
[1746064623501,0.2112049,94690.0,94689.0,0.41031127]
[1746064624404,0.2112049,94690.0,94689.0,0.40731127]
[1746064624600,0.2112049,94690.0,94689.0,0.40931127]
[1746064626506,0.2112049,94690.0,94689.0,0.01681127]
[1746064627004,0.2112049,94690.0,94685.0,0.00105613]
[1746064627005,0.2112139,94686.0,94685.0,0.00105613]
[1746064628301,0.2112139,94686.0,94685.0,0.00405613]
[1746064629897,0.2112139,94686.0,94685.0,0.00105613]
[1746064631499,0.2727139,94686.0,94685.0,0.00105613]
[1746064633408,0.052804,94685.0,94677.0,0.00158433]
[1746064633609,0.2112317,94678.0,94677.0,0.00158433]
[1746064633812,0.2112317,94678.0,94663.0,0.0318]
[1746064633813,0.2112629,94664.0,94663.0,0.0318]
[1746064634705,0.2112652,94663.0,94662.0,0.0304]
[1746064636111,0.2112652,94663.0,94662.0,0.0344]
[1746064637513,0.2112652,94663.0,94662.0,0.0384]
[1746064640311,0.2112652,94663.0,94662.0,0.1984]
[1746064640815,0.2113052,94663.0,94662.0,0.0384]
[1746064642209,0.2744052,94663.0,94662.0,0.0384]
[1746064642611,0.2744052,94663.0,94662.0,0.008]
[1746064643114,0.2112875,94653.0,94652.0,0.00158468]
[1746064643418,0.2113054,94645.0,94644.0,0.0644]
[1746064644319,0.2445054,94645.0,94644.0,0.0644]
[1746064644706,0.2455054,94645.0,94644.0,0.0724]
[1746064645618,0.2455054,94645.0,94644.0,0.0784]
[1746064645619,0.2465054,94645.0,94644.0,0.0784]
[1746064646418,0.2465054,94645.0,94644.0,0.1082]
[1746064648621,0.2133054,94645.0,94644.0,0.2882]
[1746064649316,0.2133054,94645.0,94644.0,0.4995076]
[1746064649505,0.2133454,94645.0,94644.0,0.4995076]
[1746064656615,0.2133054,94645.0,94644.0,0.4995076]
[1746064657012,0.2133454,94645.0,94644.0,0.8603076]
[1746064657324,0.2123454,94645.0,94644.0,0.9773076]
[1746064657511,0.2123454,94645.0,94644.0,0.9793076]
[1746064657711,0.2113454,94645.0,94644.0,0.9753076]
[1746064659226,0.2113454,94645.0,94644.0,0.99174794]
[1746064659522,0.2113454,94645.0,94644.0,0.9753076]
[1746064659719,0.2113454,94645.0,94644.0,0.99174761]
[1746064660618,0.2113454,94645.0,94644.0,0.98974761]
[1746064660922,0.2113454,94645.0,94644.0,0.99174761]
[1746064663523,0.2113454,94645.0,94644.0,0.9917184]
[1746064665221,0.2113454,94645.0,94644.0,0.99153959]
[1746064668724,0.2113454,94645.0,94644.0,0.74833199]
[1746064668928,0.2113454,94645.0,94644.0,0.6996]
[1746064669128,0.2113454,94645.0,94644.0,0.5776]
[1746064669828,0.2113454,94645.0,94644.0,0.184]
[1746064670229,0.2113454,94645.0,94644.0,0.004]
[1746064671622,0.2113454,94645.0,94644.0,0.002]
[1746064671817,0.2113454,94645.0,94644.0,0.004]
[1746064673420,0.2113454,94645.0,94644.0,0.002]
[1746064673730,0.2113454,94645.0,94644.0,0.004]
[1746064674627,0.2113454,94645.0,94644.0,0.002]
[1746064674826,0.2113454,94645.0,94644.0,0.004]
[1746064687438,4e-05,94645.0,94644.0,0.8617676]
[1746064687638,0.0332,94658.0,94644.0,0.66682166]
[1746064687941,7.291e-05,94658.0,94657.0,0.2112786]
[1746064688240,0.2112616,94665.0,94664.0,0.2112629]
[1746064688443,0.2112616,94665.0,94664.0,0.3812629]
[1746064689161,0.2112616,94665.0,94664.0,0.5032629]
[1746064689943,0.2113016,94665.0,94664.0,0.5032629]
[1746064690241,0.2113016,94665.0,94664.0,0.3812629]
[1746064690442,0.2143016,94665.0,94664.0,0.3812629]
[1746064690941,0.2173016,94665.0,94664.0,0.3812629]
[1746064691135,0.2492616,94665.0,94664.0,0.3812629]
[1746064691337,0.2493016,94665.0,94664.0,0.3812629]
[1746064692738,0.2493016,94665.0,94664.0,0.17]
[1746064694730,0.2823016,94665.0,94664.0,0.17]
[1746064695735,0.2823016,94665.0,94656.0,0.2112791]
[1746064695736,0.2112786,94657.0,94656.0,0.2112791]
[1746064695938,0.2112786,94657.0,94656.0,0.2312791]
[1746064696535,0.2439786,94657.0,94656.0,0.2312791]
[1746064696936,0.2449786,94657.0,94656.0,0.2312791]
[1746064698146,0.2459786,94657.0,94656.0,0.3532791]
[1746064698735,0.2459786,94657.0,94656.0,0.3847791]
[1746064700644,0.2459786,94657.0,94656.0,0.1735]
[1746064701141,0.2459786,94657.0,94656.0,0.0515]
[1746064702532,0.2459786,94657.0,94656.0,0.0848]
[1746064707153,0.2459786,94657.0,94656.0,0.02]
[1746064707337,0.2113054,94645.0,94644.0,0.0304]
[1746064707538,0.2113054,94645.0,94644.0,0.3043076]
[1746064708453,0.2113054,94645.0,94644.0,0.3063076]
[1746064708844,0.2113054,94645.0,94644.0,0.4763076]
[1746064709148,0.2414037,94646.0,94645.0,0.2113054]
[1746064709351,0.0301,94646.0,94645.0,0.5362054]
[1746064709549,0.21134821,94650.0,94649.0,0.2112964]
[1746064709750,0.2112942,94650.0,94649.0,0.4512964]
[1746064709953,0.2113342,94650.0,94649.0,0.4512964]
[1746064710152,0.2113342,94650.0,94649.0,0.6381964]
[1746064710853,0.2113342,94650.0,94649.0,0.65461262]
[1746064711247,0.2113342,94650.0,94649.0,0.65561521]
[1746064711443,0.2113342,94650.0,94649.0,0.6391964]
[1746064712156,0.2113342,94650.0,94649.0,0.6401964]
[1746064713355,4e-05,94650.0,94649.0,0.6401964]
[1746064713767,0.2112828,94656.0,94655.0,0.2112808]
[1746064713965,0.2112828,94656.0,94655.0,0.9292808]
[1746064714962,0.2132828,94656.0,94655.0,0.9292808]
[1746064719069,0.2132828,94656.0,94655.0,0.94579243]
[1746064719860,0.2132828,94656.0,94655.0,0.9292808]
[1746064720055,0.2132828,94656.0,94655.0,0.94579243]
[1746064725148,0.2132828,94656.0,94655.0,0.9457924]
[1746064726156,0.2132828,94656.0,94655.0,0.9292808]
[1746064729263,0.2132828,94656.0,94655.0,0.8320808]
[1746064729567,0.2767828,94656.0,94655.0,0.6208]
[1746064729757,0.2767828,94656.0,94655.0,0.832083]
[1746064729959,0.2767828,94656.0,94655.0,0.6208]
[1746064730463,0.2767828,94656.0,94655.0,0.832083]
[1746064732272,0.2767828,94656.0,94655.0,0.26]
[1746064732566,0.2767828,94656.0,94655.0,0.471283]
[1746064732757,0.2767828,94656.0,94655.0,0.26]
[1746064742967,0.2132828,94656.0,94655.0,0.471283]